[Event "FIDE World Rapid-ch Open 2018"]
[White "Lintchevski, Daniil"]
[Black "Usmanov, Vasily"]
[Site "St. Petersburg"]
[Round "13.76"]
[Annotator "ChessBase"]
[Result "0-1"]
[Date "2018.12.28"]
[WhiteElo "2516"]
[BlackElo "2450"]
[PlyCount "102"]
[TimeControl "900+10"]

1. e4 {[%emt 0:0:0]} e6 {[%emt 0:0:0]} 2. d4 {[%emt 0:0:0]} d5 {[%emt 0:0:0]} 3. exd5 {[%emt 0:0:3]} exd5 {[%emt 0:0:0]} 4. Nf3 {[%emt 0:0:3]} Nf6 {[%emt 0:0:0]} 5. Bd3 {[%emt 0:0:3]} c5 {[%emt 0:0:0]} 6. dxc5 {[%emt 0:0:25]
} Bxc5 {[%emt 0:0:0]} 7. 0-0 {[%emt 0:0:4]} 0-0 {[%emt 0:0:0]} 8. Nc3 {[%emt 0:0:6]} Nc6 {[%emt 0:0:14]} 9. Bg5 {[%emt 0:0:14]} h6 {[%emt 0:0:17]
} 10. Bh4 {[%emt 0:0:30]} Re8 {[%emt 0:1:25]} 11. Bxf6 {[%emt 0:0:41]
} Qxf6 {[%emt 0:0:4]} 12. Nxd5 {[%emt 0:0:2]} Qd6 {[%emt 0:0:0]} 13. Nc3 {[%emt 0:1:1]} Bg4 {[%emt 0:1:38]} 14. Ne4 {[%emt 0:0:21]} Qf8 {[%emt 0:0:24]} 15. h3 {[%emt 0:0:34]} Bh5 {[%emt 0:0:4]} 16. Ng3 {[%emt 0:0:12]
} Bxf3 {[%emt 0:0:14]} 17. Qxf3 {[%emt 0:0:3]} Ne5 {[%emt 0:0:0]} 18. Qxb7 {[%emt 0:1:4]} Nxd3 {[%emt 0:0:30]} 19. cxd3 {[%emt 0:0:0]} Rab8 {[%emt 0:0:1]} 20. Qd5 {[%emt 0:0:21]} Rxb2 {[%emt 0:0:37]} 21. Ne4 {[%emt 0:0:6]} Bb6 {[%emt 0:0:17]} 22. Rab1 {[%emt 0:0:37]} Rxb1 {[%emt 0:2:52]
} 23. Rxb1 {[%emt 0:0:2]} Rd8 {[%emt 0:0:0]} 24. Qc4 {[%emt 0:2:3]
} Kh8 {[%emt 0:2:39]} 25. Rb5 {[%emt 0:1:41]} f5 {[%emt 0:0:0]} 26. Ng3 {[%emt 0:0:56]} f4 {[%emt 0:0:58]} 27. Nf5 {[%emt 0:1:53]} f3 {[%emt 0:1:34]
} 28. gxf3 {[%emt 0:2:16]} Qe8 {[%emt 0:0:46]} 29. Kg2 {[%emt 0:1:51]
} Qe2 {[%emt 0:0:44]} 30. Qh4 {[%emt 0:0:17]} Rxd3 {[%emt 0:0:0]} 31. Qg3 {[%emt 0:0:4]} Rd7 {[%emt 0:1:3]} 32. Re5 {[%emt 0:0:54]} Qxa2 {[%emt 0:0:11]} 33. Ne3 {[%emt 0:0:41]} Kh7 {[%emt 0:0:28]} 34. Qg4 {[%emt 0:0:11]
} Rd6 {[%emt 0:0:46]} 35. Qe4+ {[%emt 0:0:17]} Rg6+ {[%emt 0:0:0]} 36. Kf1 {[%emt 0:0:1]} Bxe3 {[%emt 0:0:58]} 37. fxe3 {[%emt 0:0:9]
} Qg2+ {[%emt 0:0:2]} 38. Ke1 {[%emt 0:0:1]} Qxh3 {[%emt 0:0:8]} 39. Kd2 {[%emt 0:0:10]} Qd7+ {[%emt 0:0:13]} 40. Ke2 {[%emt 0:0:5]} Qc6 {[%emt 0:0:0]} 41. Qf5 {[%emt 0:0:21]} Kg8 {[%emt 0:0:13]} 42. Kf2 {[%emt 0:0:29]} Rf6 {[%emt 0:0:20]} 43. Qe4 {[%emt 0:0:1]} Qxe4 {[%emt 0:0:10]} 44. Rxe4 {[%emt 0:0:1]
} a5 {[%emt 0:0:8]} 45. Re8+ {[%emt 0:0:1]} Rf8 {[%emt 0:0:0]} 46. Re4 {[%emt 0:0:5]} Ra8 {[%emt 0:0:1]} 47. Ra4 {[%emt 0:0:1]} Kf7 {[%emt 0:0:2]} 48. e4 {[%emt 0:0:0]} g5 {[%emt 0:0:10]} 49. Ke3 {[%emt 0:0:0]} Ke6 {[%emt 0:0:2]} 50. Kd4 {[%emt 0:0:18]} h5 {[%emt 0:0:5]} 51. Ra1 {[%emt 0:0:2]} a4 {[%emt 0:0:2]} 0-1

[Event "FIDE World Rapid-ch Open 2018"]
[White "Anikonov, Dmitry"]
[Black "Gareyev, Timur"]
[Site "St. Petersburg"]
[Round "13.77"]
[Annotator "ChessBase"]
[Result "1/2-1/2"]
[Date "2018.12.28"]
[WhiteElo "2371"]
[BlackElo "2569"]
[PlyCount "71"]
[TimeControl "900+10"]

1. d4 {[%emt 0:0:0]} Nf6 {[%emt 0:2:14]} 2. c4 {[%emt 0:0:0]} e6 {[%emt 0:0:0]} 3. g3 {[%emt 0:0:0]} Bb4+ {[%emt 0:0:2]} 4. Bd2 {[%emt 0:0:0]} a5 {[%emt 0:0:1]} 5. Bg2 {[%emt 0:0:7]} 0-0 {[%emt 0:0:3]} 6. Nf3 {[%emt 0:0:0]} b6 {[%emt 0:0:3]} 7. Ne5 {[%emt 0:0:25]} Ra7 {[%emt 0:0:33]} 8. 0-0 {[%emt 0:0:43]} Bb7 {[%emt 0:0:10]} 9. Nd3 {[%emt 0:0:53]} Be7 {[%emt 0:0:0]} 10. Nc3 {[%emt 0:0:12]} Bxg2 {[%emt 0:0:6]} 11. Kxg2 {[%emt 0:0:1]} d5 {[%emt 0:0:36]} 12. cxd5 {[%emt 0:0:15]} Nxd5 {[%emt 0:0:15]} 13. e4 {[%emt 0:0:23]
} Nxc3 {[%emt 0:0:20]} 14. bxc3 {[%emt 0:0:13]} a4 {[%emt 0:0:0]} 15. Be3 {[%emt 0:0:12]} Nc6 {[%emt 0:0:8]} 16. Qc2 {[%emt 0:0:40]} Qa8 {[%emt 0:0:57]} 17. f3 {[%emt 0:0:4]} Rd8 {[%emt 0:0:2]} 18. Rf2 {[%emt 0:0:0]} Ra5 {[%emt 0:0:19]} 19. Nf4 {[%emt 0:1:48]} e5 {[%emt 0:1:25]} 20. Nd5 {[%emt 0:0:22]} Bd6 {[%emt 0:0:6]} 21. Qe2 {[%emt 0:1:35]} exd4 {[%emt 0:0:14]
} 22. cxd4 {[%emt 0:0:12]} Rxd5 {[%emt 0:0:2]} 23. exd5 {[%emt 0:0:4]
} Nb4 {[%emt 0:0:4]} 24. Bd2 {[%emt 0:2:50]} Nxd5 {[%emt 0:0:0]} 25. Re1 {[%emt 0:0:7]} h6 {[%emt 0:0:27]} 26. Qe4 {[%emt 0:0:21]} b5 {[%emt 0:0:6]
} 27. Rfe2 {[%emt 0:0:52]} b4 {[%emt 0:0:26]} 28. Qd3 {[%emt 0:0:0]} Rb8 {[%emt 0:0:35]} 29. Rb1 {[%emt 0:0:12]} Qc6 {[%emt 0:0:15]} 30. Rc1 {[%emt 0:0:20]} Qd7 {[%emt 0:0:28]} 31. Qc4 {[%emt 0:0:16]} Nb6 {[%emt 0:1:14]
} 32. Qd3 {[%emt 0:0:12]} Rd8 {[%emt 0:0:42]} 33. Rb1 {[%emt 0:0:0]} Nd5 {[%emt 0:0:5]} 34. Qc4 {[%emt 0:0:6]} Nb6 {[%emt 0:0:19]} 35. Qd3 {[%emt 0:0:6]} Nd5 {[%emt 0:0:27]} 36. Qc4 {[%emt 0:0:2]} 1/2-1/2

[Event "FIDE World Rapid-ch Open 2018"]
[White "Rechlis, Gad"]
[Black "Kobo, Ori"]
[Site "St. Petersburg"]
[Round "13.78"]
[Annotator "ChessBase"]
[Result "1/2-1/2"]
[Date "2018.12.28"]
[WhiteElo "2521"]
[BlackElo "2494"]
[PlyCount "118"]
[TimeControl "900+10"]

1. e4 {[%emt 0:0:0]} g6 {[%emt 0:0:0]} 2. d4 {[%emt 0:0:12]} Bg7 {[%emt 0:0:0]} 3. Be3 {[%emt 0:0:19]} c5 {[%emt 0:0:30]} 4. Nc3 {[%emt 0:0:45]} cxd4 {[%emt 0:0:47]} 5. Bxd4 {[%emt 0:0:1]} Nf6 {[%emt 0:2:6]} 6. e5 {[%emt 0:4:39]
} Nh5 {[%emt 0:0:4]} 7. Qd2 {[%emt 0:0:10]} d6 {[%emt 0:1:56]
} 8. exd6 {[%emt 0:0:9]} Qxd6 {[%emt 0:0:16]} 9. Nb5 {[%emt 0:0:9]} Qc6 {[%emt 0:1:9]
} 10. Nf3 {[%emt 0:2:12]} 0-0 {[%emt 0:0:11]} 11. Bxg7 {[%emt 0:0:7]
} Nxg7 {[%emt 0:0:23]} 12. 0-0-0 {[%emt 0:0:5]} Nd7 {[%emt 0:0:0]} 13. Qb4 {[%emt 0:1:32]} Nc5 {[%emt 0:1:42]} 14. Ne5 {[%emt 0:1:55]} Qb6 {[%emt 0:0:1]} 15. a3 {[%emt 0:0:35]} Be6 {[%emt 0:1:4]} 16. Nd4 {[%emt 0:0:36]
} Qxb4 {[%emt 0:1:39]} 17. axb4 {[%emt 0:0:1]} Ne4 {[%emt 0:0:0]} 18. Nxe6 {[%emt 0:1:40]} fxe6 {[%emt 0:0:22]} 19. Nd3 {[%emt 0:1:37]
} Nxf2 {[%emt 0:0:40]} 20. Nxf2 {[%emt 0:0:2]} Rxf2 {[%emt 0:0:1]} 21. Rd7 {[%emt 0:0:1]} Nf5 {[%emt 0:1:6]} 22. Bc4 {[%emt 0:0:41]} Ne3 {[%emt 0:0:0]} 23. Bxe6+ {[%emt 0:0:17]} Kf8 {[%emt 0:0:1]} 24. Bb3 {[%emt 0:0:28]} a5 {[%emt 0:0:28]} 25. bxa5 {[%emt 0:0:26]} Rxa5 {[%emt 0:0:4]} 26. Kb1 {[%emt 0:0:4]
} Rxg2 {[%emt 0:1:1]} 27. Rxb7 {[%emt 0:0:10]} Rf2 {[%emt 0:0:0]} 28. h4 {[%emt 0:0:7]} Nf1 {[%emt 0:0:7]} 29. Ba2 {[%emt 0:0:23]} Rc5 {[%emt 0:0:22]} 30. c3 {[%emt 0:0:10]} Re5 {[%emt 0:0:15]} 31. Bb3 {[%emt 0:0:19]
} Nd2+ {[%emt 0:0:28]} 32. Kc1 {[%emt 0:0:5]} Ra5 {[%emt 0:0:0]} 33. Kc2 {[%emt 0:0:11]} Ne4+ {[%emt 0:0:14]} 34. Kb1 {[%emt 0:0:2]} Nd2+ {[%emt 0:0:3]} 35. Kc2 {[%emt 0:0:1]} Nc4+ {[%emt 0:0:13]} 36. Kd3 {[%emt 0:0:13]
} Ne5+ {[%emt 0:0:15]} 37. Ke3 {[%emt 0:0:9]} Ng4+ {[%emt 0:0:0]} 38. Kd3 {[%emt 0:0:4]} Rxb2 {[%emt 0:0:7]} 39. Rf1+ {[%emt 0:0:1]
} Nf6 {[%emt 0:0:15]} 40. Re1 {[%emt 0:0:10]} Ra3 {[%emt 0:0:20]} 41. Rexe7 {[%emt 0:0:28]} Rbxb3 {[%emt 0:0:4]} 42. Rf7+ {[%emt 0:0:2]} Ke8 {[%emt 0:0:0]} 43. Rxb3 {[%emt 0:0:1]} Rxb3 {[%emt 0:0:1]} 44. Rxf6 {[%emt 0:0:0]} Rb1 {[%emt 0:0:10]} 45. Kd4 {[%emt 0:0:14]} Rh1 {[%emt 0:0:11]} 46. Rf4 {[%emt 0:0:1]} Ke7 {[%emt 0:0:10]} 47. Kd5 {[%emt 0:0:7]} h6 {[%emt 0:0:0]} 48. Rg4 {[%emt 0:0:11]} Kf6 {[%emt 0:0:7]} 49. Rf4+ {[%emt 0:0:2]} Ke7 {[%emt 0:0:1]} 50. c4 {[%emt 0:0:3]} Rd1+ {[%emt 0:0:24]} 51. Kc6 {[%emt 0:0:22]
} g5 {[%emt 0:0:12]} 52. hxg5 {[%emt 0:0:3]} hxg5 {[%emt 0:0:0]} 53. Rf5 {[%emt 0:0:17]} g4 {[%emt 0:0:9]} 54. c5 {[%emt 0:0:7]} Ke6 {[%emt 0:0:20]
} 55. Rg5 {[%emt 0:0:2]} Rd4 {[%emt 0:0:2]} 56. Kb7 {[%emt 0:0:0]} Kf6 {[%emt 0:0:5]} 57. Rg8 {[%emt 0:0:4]} Rb4+ {[%emt 0:0:9]} 58. Ka6 {[%emt 0:0:16]} Kf5 {[%emt 0:0:10]} 59. c6 {[%emt 0:0:5]} Rc4 {[%emt 0:0:0]} 1/2-1/2

[Event "FIDE World Rapid-ch Open 2018"]
[White "Hirneise, Jens"]
[Black "Geller, Jakov"]
[Site "St. Petersburg"]
[Round "13.79"]
[Annotator "ChessBase"]
[Result "1/2-1/2"]
[Date "2018.12.28"]
[WhiteElo "2371"]
[BlackElo "2518"]
[PlyCount "116"]
[TimeControl "900+10"]

1. e4 {[%emt 0:0:0]} c5 {[%emt 0:0:0]} 2. Nf3 {[%emt 0:0:3]} e6 {[%emt 0:0:0]} 3. d4 {[%emt 0:0:0]} cxd4 {[%emt 0:0:0]} 4. Nxd4 {[%emt 0:0:0]} a6 {[%emt 0:0:0]} 5. Nc3 {[%emt 0:0:0]} Qc7 {[%emt 0:0:2]} 6. Bd3 {[%emt 0:0:0]
} Nf6 {[%emt 0:0:2]} 7. f4 {[%emt 0:0:0]} d6 {[%emt 0:0:2]} 8. Qf3 {[%emt 0:0:14]} b5 {[%emt 0:0:18]} 9. Be3 {[%emt 0:0:36]} Bb7 {[%emt 0:0:7]
} 10. g4 {[%emt 0:0:47]} b4 {[%emt 0:1:29]} 11. Nce2 {[%emt 0:0:0]} h6 {[%emt 0:2:12]} 12. g5 {[%emt 0:1:53]} hxg5 {[%emt 0:0:22]} 13. fxg5 {[%emt 0:0:2]} Nfd7 {[%emt 0:0:2]} 14. g6 {[%emt 0:0:18]} Ne5 {[%emt 0:0:2]
} 15. gxf7+ {[%emt 0:0:10]} Qxf7 {[%emt 0:0:15]} 16. Qxf7+ {[%emt 0:1:53]
} Kxf7 {[%emt 0:0:5]} 17. 0-0+ {[%emt 0:0:8]} Ke7 {[%emt 0:0:0]} 18. Bg5+ {[%emt 0:0:12]} Kd7 {[%emt 0:0:2]} 19. Nf4 {[%emt 0:0:22]} Nbc6 {[%emt 0:0:11]} 20. Ndxe6 {[%emt 0:3:51]} Be7 {[%emt 0:0:14]} 21. Bxe7 {[%emt 0:1:25]} Nxe7 {[%emt 0:0:5]} 22. Ng5 {[%emt 0:0:33]} Rh4 {[%emt 0:0:0]} 23. h3 {[%emt 0:0:13]} Rf8 {[%emt 0:1:8]} 24. Nfe6 {[%emt 0:0:15]} Rf6 {[%emt 0:0:25]} 25. Nf8+ {[%emt 0:1:16]} Kc6 {[%emt 0:0:58]} 26. Kg2 {[%emt 0:0:40]
} Rh5 {[%emt 0:3:18]} 27. Nge6 {[%emt 0:0:35]} Rfh6 {[%emt 0:0:0]} 28. Nd4+ {[%emt 0:2:1]} Kb6 {[%emt 0:0:15]} 29. Nf3 {[%emt 0:1:4]} N7g6 {[%emt 0:1:1]} 30. Nxg6 {[%emt 0:0:23]} Rxg6+ {[%emt 0:1:29]} 31. Kf2 {[%emt 0:0:6]} Nxf3 {[%emt 0:1:12]} 32. Kxf3 {[%emt 0:0:1]} Rxh3+ {[%emt 0:0:3]
} 33. Ke2 {[%emt 0:0:41]} Re6 {[%emt 0:1:10]} 34. Rf4 {[%emt 0:0:0]} d5 {[%emt 0:0:8]} 35. Rg1 {[%emt 0:0:7]} dxe4 {[%emt 0:0:5]} 36. Bc4 {[%emt 0:0:12]} Re7 {[%emt 0:0:14]} 37. Rf5 {[%emt 0:0:26]} e3 {[%emt 0:0:0]} 38. Rg6+ {[%emt 0:0:4]} Ka7 {[%emt 0:0:9]} 39. Re6 {[%emt 0:0:13]} Rxe6 {[%emt 0:1:8]} 40. Bxe6 {[%emt 0:0:1]} Rh2+ {[%emt 0:0:7]} 41. Kxe3 {[%emt 0:0:5]} Rxc2 {[%emt 0:0:1]} 42. Rf7 {[%emt 0:0:15]} Kb6 {[%emt 0:0:0]} 43. Rxg7 {[%emt 0:0:12]} Rxb2 {[%emt 0:0:2]} 44. Kd4 {[%emt 0:0:11]
} Bc6 {[%emt 0:0:8]} 45. Rg6 {[%emt 0:0:18]} a5 {[%emt 0:0:46]} 46. Bc4 {[%emt 0:0:15]
} Rd2+ {[%emt 0:0:16]} 47. Ke3 {[%emt 0:0:3]} Rc2 {[%emt 0:0:0]} 48. Bd5 {[%emt 0:0:15]} Kb5 {[%emt 0:0:9]} 49. Bb3 {[%emt 0:0:12]} Rc3+ {[%emt 0:0:5]} 50. Kd2 {[%emt 0:0:3]} a4 {[%emt 0:0:8]} 51. Rg5+ {[%emt 0:0:2]
} Kb6 {[%emt 0:0:6]} 52. Bc2 {[%emt 0:0:8]} Kc7 {[%emt 0:0:0]} 53. Rg4 {[%emt 0:0:16]} Ra3 {[%emt 0:0:10]} 54. Rxb4 {[%emt 0:0:3]} Rxa2 {[%emt 0:0:1]} 55. Kc1 {[%emt 0:0:14]} Ra3 {[%emt 0:0:17]} 56. Kb2 {[%emt 0:0:3]
} Re3 {[%emt 0:0:2]} 57. Bxa4 {[%emt 0:0:2]} Bxa4 {[%emt 0:0:0]} 58. Rxa4 {[%emt 0:0:0]} Kb6 {[%emt 0:0:2]} 1/2-1/2

[Event "FIDE World Rapid-ch Open 2018"]
[White "Baron, Tal"]
[Black "Bilguun, Sumiya"]
[Site "St. Petersburg"]
[Round "13.80"]
[Annotator "ChessBase"]
[Result "0-1"]
[Date "2018.12.28"]
[WhiteElo "2532"]
[BlackElo "2497"]
[PlyCount "126"]
[TimeControl "900+10"]

1. e4 {[%emt 0:2:10]} c5 {[%emt 0:0:0]} 2. Nf3 {[%emt 0:0:2]} e6 {[%emt 0:0:0]} 3. d4 {[%emt 0:0:0]} cxd4 {[%emt 0:0:0]} 4. Nxd4 {[%emt 0:0:1]} a6 {[%emt 0:0:1]} 5. c4 {[%emt 0:0:2]} Nf6 {[%emt 0:0:2]} 6. Nc3 {[%emt 0:0:1]
} Qc7 {[%emt 0:0:2]} 7. Be2 {[%emt 0:0:1]} Bb4 {[%emt 0:0:0]} 8. 0-0 {[%emt 0:0:2]} 0-0 {[%emt 0:0:23]} 9. Bg5 {[%emt 0:0:33]} Nc6 {[%emt 0:2:49]
} 10. Bxf6 {[%emt 0:1:45]} gxf6 {[%emt 0:0:2]} 11. Rc1 {[%emt 0:0:9]
} Qd6 {[%emt 0:1:23]} 12. a3 {[%emt 0:4:46]} Bc5 {[%emt 0:0:0]} 13. Nb3 {[%emt 0:0:5]} b6 {[%emt 0:0:56]} 14. Nxc5 {[%emt 0:1:18]} Qxd1 {[%emt 0:0:5]} 15. Rfxd1 {[%emt 0:0:3]} bxc5 {[%emt 0:0:2]} 16. Na4 {[%emt 0:0:9]} Nd4 {[%emt 0:3:41]} 17. Bf1 {[%emt 0:0:35]} d6 {[%emt 0:0:0]} 18. b4 {[%emt 0:0:4]} Bd7 {[%emt 0:0:23]} 19. bxc5 {[%emt 0:0:37]} Bxa4 {[%emt 0:0:3]} 20. Rxd4 {[%emt 0:0:11]} dxc5 {[%emt 0:0:5]} 21. Rd6 {[%emt 0:0:12]
} Rfd8 {[%emt 0:1:4]} 22. Rb6 {[%emt 0:0:21]} Rd4 {[%emt 0:0:0]} 23. f3 {[%emt 0:0:5]} Rd2 {[%emt 0:0:14]} 24. Rcb1 {[%emt 0:0:4]} Kg7 {[%emt 0:2:53]} 25. Rb8 {[%emt 0:0:19]} Rxb8 {[%emt 0:0:5]} 26. Rxb8 {[%emt 0:0:1]
} Rd6 {[%emt 0:0:27]} 27. Kf2 {[%emt 0:0:11]} e5 {[%emt 0:0:0]} 28. Ke3 {[%emt 0:0:15]} Bd7 {[%emt 0:0:2]} 29. g4 {[%emt 0:0:41]} Be6 {[%emt 0:0:2]} 30. Rb1 {[%emt 0:0:54]} Rd4 {[%emt 0:0:3]} 31. Rc1 {[%emt 0:0:13]
} Rd6 {[%emt 0:0:9]} 32. Rb1 {[%emt 0:0:9]} Rd4 {[%emt 0:0:0]} 33. Rc1 {[%emt 0:0:9]} Rd6 {[%emt 0:0:0]} 34. Bd3 {[%emt 0:0:54]} Rb6 {[%emt 0:0:9]} 35. Kd2 {[%emt 0:0:5]} Rb3 {[%emt 0:0:43]} 36. Ra1 {[%emt 0:0:8]
} Bd7 {[%emt 0:0:6]} 37. h4 {[%emt 0:1:16]} h6 {[%emt 0:0:4]
} 38. h5 {[%emt 0:0:37]} Kf8 {[%emt 0:0:5]} 39. Kc2 {[%emt 0:0:20]} Ba4 {[%emt 0:0:1]
} 40. Kd2 {[%emt 0:0:2]} Rb2+ {[%emt 0:0:15]} 41. Ke3 {[%emt 0:0:3]
} Bb3 {[%emt 0:0:38]} 42. Rc1 {[%emt 0:0:29]} a5 {[%emt 0:0:0]} 43. f4 {[%emt 0:1:0]} a4 {[%emt 0:0:25]} 44. Bb1 {[%emt 0:0:40]} Rh2 {[%emt 0:0:5]
} 45. fxe5 {[%emt 0:0:19]} fxe5 {[%emt 0:0:2]} 46. Kf3 {[%emt 0:0:6]
} Kg7 {[%emt 0:0:11]} 47. Kg3 {[%emt 0:0:8]} Rd2 {[%emt 0:0:0]} 48. Rc3 {[%emt 0:0:8]} Rd1 {[%emt 0:0:23]} 49. Bd3 {[%emt 0:0:4]} Ra1 {[%emt 0:0:2]} 50. Be2 {[%emt 0:0:28]} Rxa3 {[%emt 0:0:5]} 51. Rf3 {[%emt 0:0:24]
} Ra2 {[%emt 0:0:5]} 52. Bf1 {[%emt 0:0:6]} Rd2 {[%emt 0:0:0]} 53. g5 {[%emt 0:0:5]} hxg5 {[%emt 0:0:2]} 54. h6+ {[%emt 0:0:0]} Kxh6 {[%emt 0:0:2]} 55. Rxf7 {[%emt 0:0:4]} a3 {[%emt 0:0:1]} 56. Ra7 {[%emt 0:0:33]
} a2 {[%emt 0:0:2]} 57. Bh3 {[%emt 0:0:1]} Rd3+ {[%emt 0:0:0]} 58. Kg2 {[%emt 0:0:5]} Rd1 {[%emt 0:0:10]} 59. Bf5 {[%emt 0:0:10]} g4 {[%emt 0:0:1]} 60. Ra6+ {[%emt 0:0:24]} Kh5 {[%emt 0:0:21]} 61. Kg3 {[%emt 0:0:12]
} Rg1+ {[%emt 0:0:2]} 62. Kh2 {[%emt 0:0:3]} a1=Q {[%emt 0:0:0]} 63. Bxg4+ {[%emt 0:0:11]} Kg5 {[%emt 0:0:9]} 0-1

[Event "FIDE World Rapid-ch Open 2018"]
[White "Nozdrachev, Vladislav"]
[Black "Pogosyan, Stefan"]
[Site "St. Petersburg"]
[Round "13.81"]
[Annotator "ChessBase"]
[Result "1-0"]
[Date "2018.12.28"]
[WhiteElo "2486"]
[BlackElo "2365"]
[PlyCount "51"]
[TimeControl "900+10"]

1. e4 {[%emt 0:0:0]} e5 {[%emt 0:0:20]} 2. Nf3 {[%emt 0:0:0]} Nc6 {[%emt 0:0:1]
} 3. Bc4 {[%emt 0:0:0]} Nf6 {[%emt 0:0:14]} 4. d3 {[%emt 0:0:0]} Be7 {[%emt 0:0:9]} 5. Nc3 {[%emt 0:0:23]} 0-0 {[%emt 0:0:7]} 6. a3 {[%emt 0:0:12]
} d6 {[%emt 0:0:9]} 7. h3 {[%emt 0:0:31]} Be6 {[%emt 0:0:3]} 8. Nd5 {[%emt 0:1:23]} h6 {[%emt 0:1:52]} 9. 0-0 {[%emt 0:0:14]} Re8 {[%emt 0:0:5]
} 10. c3 {[%emt 0:1:46]} Bf8 {[%emt 0:1:25]} 11. Nh2 {[%emt 0:0:0]} Bxd5 {[%emt 0:2:0]} 12. exd5 {[%emt 0:0:3]} Ne7 {[%emt 0:0:1]} 13. Qf3 {[%emt 0:0:15]} Qd7 {[%emt 0:2:19]} 14. Bxh6 {[%emt 0:0:52]} c6 {[%emt 0:2:25]
} 15. dxc6 {[%emt 0:0:41]} bxc6 {[%emt 0:0:0]} 16. Bg5 {[%emt 0:1:16]
} d5 {[%emt 0:0:13]} 17. Bxf6 {[%emt 0:0:3]} gxf6 {[%emt 0:0:0]} 18. Ba2 {[%emt 0:0:31]} f5 {[%emt 0:0:13]} 19. Rfe1 {[%emt 0:0:43]} Bg7 {[%emt 0:0:2]} 20. Nf1 {[%emt 0:0:3]} e4 {[%emt 0:1:59]} 21. dxe4 {[%emt 0:0:11]
} fxe4 {[%emt 0:0:0]} 22. Rxe4 {[%emt 0:0:20]} dxe4 {[%emt 0:0:0]} 23. Bxf7+ {[%emt 0:0:58]} Kh7 {[%emt 0:0:3]} 24. Qh5+ {[%emt 0:0:0]} Bh6 {[%emt 0:0:14]} 25. Rd1 {[%emt 0:0:5]} Qc8 {[%emt 0:1:41]} 26. Rd6 {[%emt 0:0:6]} 1-0

[Event "FIDE World Rapid-ch Open 2018"]
[White "Shubin, Kirill"]
[Black "Drygalov, Andrey"]
[Site "St. Petersburg"]
[Round "13.82"]
[Annotator "ChessBase"]
[Result "0-1"]
[Date "2018.12.28"]
[WhiteElo "2334"]
[BlackElo "2481"]
[PlyCount "98"]
[TimeControl "900+10"]

1. e4 {[%emt 0:0:0]} c5 {[%emt 0:0:0]} 2. Nf3 {[%emt 0:0:0]} d6 {[%emt 0:0:0]} 3. d4 {[%emt 0:0:0]} cxd4 {[%emt 0:0:0]} 4. Qxd4 {[%emt 0:0:0]} a6 {[%emt 0:0:5]} 5. h3 {[%emt 0:0:0]} Nc6 {[%emt 0:0:7]} 6. Qe3 {[%emt 0:0:1]
} g6 {[%emt 0:0:11]} 7. c4 {[%emt 0:0:6]} Bg7 {[%emt 0:0:3]} 8. Nc3 {[%emt 0:0:12]} Nf6 {[%emt 0:0:8]} 9. Be2 {[%emt 0:0:2]} 0-0 {[%emt 0:0:8]
} 10. 0-0 {[%emt 0:0:2]} Nd7 {[%emt 0:0:25]} 11. Rb1 {[%emt 0:0:0]} Nde5 {[%emt 0:0:16]} 12. Rd1 {[%emt 0:0:47]} Nxf3+ {[%emt 0:0:54]} 13. Bxf3 {[%emt 0:0:5]} Be6 {[%emt 0:0:30]} 14. b3 {[%emt 0:0:16]} Qa5 {[%emt 0:1:40]
} 15. Bb2 {[%emt 0:0:4]} Rab8 {[%emt 0:1:19]} 16. Nd5 {[%emt 0:2:10]
} Qc5 {[%emt 0:2:11]} 17. Qe1 {[%emt 0:2:29]} Bxb2 {[%emt 0:0:0]} 18. Rxb2 {[%emt 0:0:2]} Bxd5 {[%emt 0:0:19]} 19. Rxd5 {[%emt 0:0:28]} Qb4 {[%emt 0:0:30]} 20. Qc1 {[%emt 0:1:7]} e6 {[%emt 0:0:52]} 21. Rd1 {[%emt 0:0:53]
} e5 {[%emt 0:0:32]} 22. Bg4 {[%emt 0:0:56]} Nd4 {[%emt 0:0:0]} 23. f4 {[%emt 0:0:28]} Qc5 {[%emt 0:1:54]} 24. Kh1 {[%emt 0:0:20]} f6 {[%emt 0:1:7]
} 25. b4 {[%emt 0:0:43]} Qc7 {[%emt 0:0:47]} 26. c5 {[%emt 0:0:0]} dxc5 {[%emt 0:0:25]} 27. bxc5 {[%emt 0:0:13]} Kg7 {[%emt 0:0:39]} 28. Rb6 {[%emt 0:0:25]} Rf7 {[%emt 0:0:35]} 29. Rd6 {[%emt 0:1:48]} b6 {[%emt 0:1:18]
} 30. Rd5 {[%emt 0:0:33]} bxc5 {[%emt 0:0:18]} 31. Rxc5 {[%emt 0:0:4]
} Qe7 {[%emt 0:0:4]} 32. Qc4 {[%emt 0:1:15]} Rb2 {[%emt 0:0:0]} 33. Qd5 {[%emt 0:0:25]} h5 {[%emt 0:0:18]} 34. Bc8 {[%emt 0:0:8]} Ne2 {[%emt 0:0:15]} 35. f5 {[%emt 0:1:2]} Nf4 {[%emt 0:0:4]} 36. Qc4 {[%emt 0:0:0]} gxf5 {[%emt 0:0:14]} 37. Rd7 {[%emt 0:0:21]} Qxd7 {[%emt 0:0:13]} 38. Bxd7 {[%emt 0:0:2]} Rxd7 {[%emt 0:0:2]} 39. Rc7 {[%emt 0:0:10]} Rxc7 {[%emt 0:0:2]
} 40. Qxc7+ {[%emt 0:0:1]} Kg6 {[%emt 0:0:4]} 41. Qc4 {[%emt 0:0:36]
} Rxg2 {[%emt 0:0:27]} 42. Qg8+ {[%emt 0:0:26]} Kh6 {[%emt 0:0:0]} 43. Qh8+ {[%emt 0:0:7]} Kg5 {[%emt 0:0:23]} 44. Qg7+ {[%emt 0:0:3]
} Kh4 {[%emt 0:0:1]} 45. Qxf6+ {[%emt 0:0:1]} Kg3 {[%emt 0:0:6]} 46. Qg5+ {[%emt 0:0:28]} Kf2 {[%emt 0:0:14]} 47. Qxf5 {[%emt 0:0:2]} Rg1+ {[%emt 0:0:0]} 48. Kh2 {[%emt 0:0:2]} Rg2+ {[%emt 0:0:1]} 49. Kh1 {[%emt 0:0:0]} Rg3 0-1

[Event "FIDE World Rapid-ch Open 2018"]
[White "Shinkevich, Vitaly"]
[Black "Drygalov, Sergey"]
[Site "St. Petersburg"]
[Round "13.83"]
[Annotator "NA"]
[Result "1/2-1/2"]
[Date "2018.12.28"]
[WhiteElo "2439"]
[BlackElo "2446"]
[PlyCount "128"]
[TimeControl "900+10"]

1. Nf3 {[%emt 0:0:0]} Nf6 {[%emt 0:0:0]} 2. c4 {[%emt 0:0:0]} c6 {[%emt 0:0:2]
} 3. Nc3 {[%emt 0:0:6]} d5 {[%emt 0:0:1]} 4. d4 {[%emt 0:0:0]} e6 {[%emt 0:0:0]} 5. g3 {[%emt 0:0:7]} dxc4 {[%emt 0:0:28]} 6. Bg2 {[%emt 0:0:3]
} b5 {[%emt 0:0:1]} 7. Ne5 {[%emt 0:0:6]} a6 {[%emt 0:0:4]} 8. 0-0 {[%emt 0:0:32]} Bb7 {[%emt 0:0:49]} 9. b3 {[%emt 0:0:13]} cxb3 {[%emt 0:1:17]
} 10. axb3 {[%emt 0:0:15]} Be7 {[%emt 0:2:10]} 11. Bg5 {[%emt 0:0:20]
} 0-0 {[%emt 0:1:36]} 12. Rc1 {[%emt 0:0:3]} Ra7 {[%emt 0:0:0]} 13. Ne4 {[%emt 0:8:7]} Nd5 {[%emt 0:1:22]} 14. Bxe7 {[%emt 0:0:7]} Qxe7 {[%emt 0:0:4]} 15. Nc5 {[%emt 0:0:10]} b4 {[%emt 0:1:14]} 16. e3 {[%emt 0:0:29]
} a5 {[%emt 0:0:24]} 17. Ra1 {[%emt 0:0:3]} Ba6 {[%emt 0:0:0]} 18. Re1 {[%emt 0:0:22]} Bb5 {[%emt 0:0:2]} 19. Qh5 {[%emt 0:0:20]} Na6 {[%emt 0:0:39]} 20. Ne4 {[%emt 0:0:36]} f6 {[%emt 0:0:42]} 21. Nf3 {[%emt 0:0:0]} Nb8 {[%emt 0:0:30]} 22. Nfd2 {[%emt 0:2:49]} Nd7 {[%emt 0:0:7]} 23. Nc4 {[%emt 0:0:56]} a4 {[%emt 0:1:34]} 24. Ned6 {[%emt 0:0:3]} g6 {[%emt 0:0:0]} 25. Qh4 {[%emt 0:0:33]} Bxc4 {[%emt 0:0:11]} 26. Nxc4 {[%emt 0:0:2]
} N7b6 {[%emt 0:0:27]} 27. Nxb6 {[%emt 0:0:16]} Nxb6 {[%emt 0:0:1]} 28. bxa4 {[%emt 0:0:5]} Rxa4 {[%emt 0:0:23]} 29. Bxc6 {[%emt 0:0:34]} Rxa1 {[%emt 0:0:19]
} 30. Rxa1 {[%emt 0:0:1]} Rc8 {[%emt 0:0:30]} 31. Be4 {[%emt 0:0:35]
} Nc4 {[%emt 0:0:11]} 32. Ra6 {[%emt 0:0:25]} b3 {[%emt 0:0:0]} 33. d5 {[%emt 0:0:3]} g5 {[%emt 0:0:15]} 34. Rxe6 {[%emt 0:0:7]} gxh4 {[%emt 0:0:8]} 35. Rxe7 {[%emt 0:0:1]} Nd2 {[%emt 0:0:8]} 36. Bf5 {[%emt 0:0:25]
} Rb8 {[%emt 0:0:6]} 37. d6 {[%emt 0:0:9]} b2 {[%emt 0:0:18]
} 38. d7 {[%emt 0:0:7]} Kf8 {[%emt 0:0:3]} 39. Rxh7 {[%emt 0:0:3]} Rd8 {[%emt 0:0:1]
} 40. Rh8+ {[%emt 0:0:24]} Ke7 {[%emt 0:0:1]} 41. Rxd8 {[%emt 0:0:2]
} Kxd8 {[%emt 0:0:14]} 42. gxh4 {[%emt 0:0:2]} b1=Q+ {[%emt 0:0:0]} 43. Bxb1 {[%emt 0:0:1]} Nxb1 {[%emt 0:0:1]} 44. h5 {[%emt 0:0:2]} Nd2 {[%emt 0:0:12]} 45. Kg2 {[%emt 0:0:18]} Ne4 {[%emt 0:0:27]} 46. Kf3 {[%emt 0:0:35]
} Nd6 {[%emt 0:0:1]} 47. h6 {[%emt 0:0:8]} Nf7 {[%emt 0:0:0]} 48. h7 {[%emt 0:0:2]} Ng5+ {[%emt 0:0:16]} 49. Kg4 {[%emt 0:0:1]} Nxh7 {[%emt 0:0:3]} 50. Kf5 {[%emt 0:0:4]} Kxd7 {[%emt 0:0:1]} 51. Kg6 {[%emt 0:0:6]
} Ng5 {[%emt 0:0:3]} 52. h4 {[%emt 0:0:17]} Nf3 {[%emt 0:0:0]} 53. h5 {[%emt 0:0:14]} Ke7 {[%emt 0:0:33]} 54. h6 {[%emt 0:0:14]} Ne5+ {[%emt 0:0:7]} 55. Kg7 {[%emt 0:0:5]} f5 {[%emt 0:0:6]} 56. h7 {[%emt 0:0:0]} Nf7 {[%emt 0:0:1]} 57. f4 {[%emt 0:0:21]} Nh8 {[%emt 0:0:22]} 58. Kg8 {[%emt 0:0:11]} Kf6 {[%emt 0:0:10]} 59. Kf8 {[%emt 0:0:9]} Kg6 {[%emt 0:0:2]
} 60. Kg8 {[%emt 0:0:1]} Kf6 {[%emt 0:0:1]} 61. Kf8 {[%emt 0:0:0]} Ng6+ {[%emt 0:0:24]} 62. Kg8 {[%emt 0:0:8]} Ne7+ {[%emt 0:0:1]} 63. Kf8 {[%emt 0:0:9]} Ng6+ {[%emt 0:0:2]} 64. Kg8 {[%emt 0:0:5]} Ne7+ {[%emt 0:0:28]
} 1/2-1/2